Cogmind - Beta 15 @@@ ROGUE MODE // 2025.08.17 @ 16:28:12 Player: AlexTheBox Result: Destroyed by P-70 Sage with Tesla Rifle Performance ------------- Evolutions (6) 3000 Regions Visited (9) 1800 Robots Destroyed (28) 140 Value Destroyed (743) 743 Prototype IDs (2) 40 Alien Tech Used (0) 0 Bonus (1276) 1276 TOTAL SCORE: 6999 Bonus ------- Entered DSFs 500 Registered with UFD 300 Met Optimus in HQ 500 Friendly Fire -24 Cogmind --------- Core Integrity 0/1150 Matter 2/300 Energy 100/100 System Corruption 1% Temperature Cool (0) Movement Hovering (60) Location -4/Factory Parts ------- > --- POWER (2) -------- (None) > --- PROPULSION (5) --- Antigrav System > --- UTILITY (8) ------ (None) > --- WEAPON (4) ------- (None) > --- INVENTORY (5) ---- Antigrav System Antigrav System Field Propulsion Drive Gauss Rifle Peak State ------------ > --- POWER ------------ Improved Deuterium Engine > --- PROPULSION ------- Medium Treads Improved Medium Treads Compact Wheel Xenon Bombardment Thruster > --- UTILITY ---------- Medium Storage Unit Advanced Sensor Array Hardened Medium Armor Plating Force Field A0-MCA's Component Scanner > --- WEAPON ----------- Heavy Assault Rifle Gauss Rifle Scatter Rocket Array Makeshift Spear > --- INVENTORY -------- Fusion Compressor Overtuned Treads Xenon Bombardment Thruster Improved EM Pulse Cannon Heavy Assault Rifle Gauss Rifle Gauss Cannon Scatter Rocket Array DRS Beacon [Rating: 60] Favorites ----------- Power Light Ion Engine Engine Light Ion Engine Power Core Fusion Compressor Propulsion Light Treads Treads Light Treads Leg Aluminum Leg Wheel Compact Wheel Hover Unit Antigrav System Flight Unit Xenon Bombardment Thruster Utility Medium Storage Unit Device Seismic Detector Storage Medium Storage Unit Processor A0-MCA's Component Scanner Protection Makeshift Light Armor Plating Weapon Heavy Assault Rifle Ballistic Gun Heavy Assault Rifle Launcher Scatter Rocket Array Special Weapon Mining Laser Piercing Weapon Makeshift Spear Build | -11 -10 -10 -9 -6 -5 -5 -5 -5 -4 ------- Run | Yrd Mat Sub Scr Fac Fac Was Fac DSF Fac Slots Evolved 12 | . . . . 8 2 . . . 2 Power 1 | . . . . . 1 . . . . Propulsion 3 | . . . . 2 1 . . . . Utility 6 | . . . . 4 . . . . 2 Weapon 2 | . . . . 2 . . . . . Parts Attached 45 | 9 5 . 13 14 1 2 . . 1 Power 6 | 1 . . 3 2 . . . . . Engine 5 | 1 . . 3 1 . . . . . Core 1 | . . . . 1 . . . . . Reactor . | . . . . . . . . . . Propulsion 17 | 3 2 . 5 4 . 2 . . 1 Treads 10 | 2 . . 5 3 . . . . . Leg 1 | 1 . . . . . . . . . Wheel 3 | . 2 . . 1 . . . . . Hover 1 | . . . . . . . . . 1 Flight 2 | . . . . . . 2 . . . Utility 10 | 3 1 . 1 4 1 . . . . Device 5 | 2 . . . 3 . . . . . Storage 2 | 1 1 . . . . . . . . Processor 1 | . . . . 1 . . . . . Hackware . | . . . . . . . . . . Protection 2 | . . . 1 . 1 . . . . Artifact . | . . . . . . . . . . Weapon 12 | 2 2 . 4 4 . . . . . Energy Gun . | . . . . . . . . . . Energy Cannon . | . . . . . . . . . . Ballistic Gun 8 | 2 1 . 3 2 . . . . . Ballistic Cannon . | . . . . . . . . . . Launcher 2 | . . . 1 1 . . . . . Special Weapon 1 | . 1 . . . . . . . . Impact Weapon . | . . . . . . . . . . Slashing Weapon . | . . . . . . . . . . Piercing Weapon 1 | . . . . 1 . . . . . Special Melee Weapon . | . . . . . . . . . . Unidentified Prototypes . | . . . . . . . . . . Parts Lost 12 | . . . 4 5 . 2 . . 1 Power 2 | . . . 1 . . 1 . . . Propulsion 2 | . . . . 1 . 1 . . . Utility 5 | . . . 1 3 . . . . 1 Weapon 3 | . . . 2 1 . . . . . Highest Loss Streak 5 | . . . 2 5 . 2 . . 1 To Critical Strikes . | . . . . . . . . . . Average Backups 8 | 4 8 9 9 6 7 6 4 5 4 Power . | . 1 1 . 1 1 . . . . Propulsion 2 | 2 3 2 2 1 2 . . 1 3 Utility . | . 1 1 1 . . . . . . Weapon 3 | 1 3 5 4 3 4 4 4 4 1 Tool/Special . | . . . . . . . . . . Unused Backups 12 | 1 1 . 2 2 . 1 . . 5 Power . | . . . . . . . . . . Propulsion 5 | 1 . . 1 . . . . . 3 Utility . | . . . . . . . . . . Weapon 7 | . 1 . 1 2 . 1 . . 2 Tool/Special . | . . . . . . . . . . Average Slot Usage (%) 90 | . 99 100 99 91 79 40 5 5 3 Engine 11 | . 14 14 14 5 5 2 . . . Treads 22 | . 26 28 27 15 17 7 . . . Wheel 2 | . . . . 10 5 2 . . . Device 12 | . 14 14 12 14 11 4 5 5 2 Storage 11 | . 14 14 14 6 5 2 . . . Processor 1 | . . . . 5 5 2 . . . Protection 1 | . . . 1 4 3 2 . . . Ballistic Gun 23 | . 28 28 27 17 11 4 . . . Piercing Weapon 1 | . . . . 5 5 2 . . . Peak Build Rating 60 | 9 9 9 21 56 59 60 7 7 8 Average Rating 17 | 5 8 9 12 49 58 27 7 7 5 On Entrance 17 | . 9 9 9 19 56 59 2 7 7 Naked Turns 66 | . . . . . . 31 . . 35 Heaviest Build 53 | 13 19 19 25 45 53 53 1 1 1 Greatest Support 56 | 40 40 40 56 36 16 16 3 3 11 Greatest Overweight (x) 3 | 1 1 . 1 2 3 3 . . . Average Overweight (x) . | . . . . . 2 . . . . Largest Inventory Capacity 10 | 8 10 10 10 10 10 10 5 5 5 Average Capacity 9 | 7 9 10 10 10 10 6 5 5 5 Most Carried 10 | 7 10 10 10 10 9 9 5 5 5 Average Carried 8 | 4 8 9 9 7 8 6 4 5 4 Final Capacity 10 | 8 10 10 10 10 10 5 5 5 5 Final Carried 10 | 7 10 10 10 8 9 5 5 5 4 Class Distribution -------------------- 77% | Mutant 10% | Scavenger-Tank 4% | Skirmisher 4% | Scavenger-Mutant 3% | Tank Dominant Class ---------------- Mutant | -10/Materials Mutant | -10/Subcaves Mutant | -9/Scraptown Scavenger-Tank | -6/Factory Tank | -5/Factory Mutant | -5/Waste Mutant | -5/Factory Mutant | -5/DSF Mutant | -4/Factory Resources | -11 -10 -10 -9 -6 -5 -5 -5 -5 -4 ----------- Run | Yrd Mat Sub Scr Fac Fac Was Fac DSF Fac Matter Collected 880 | 324 140 31 321 64 . . . . . Remotely . | . . . . . . . . . . Salvage Created 981 | 127 140 31 436 247 . . . . . Parts 57 | 9 11 3 18 16 . . . . . Haulers Intercepted . | . . . . . . . . . . Recyclers Shooed . | . . . . . . . . . . Parts Field Recycled . | . . . . . . . . . . Retrieved Matter . | . . . . . . . . . . Parts Self-Destructed 6 | . . 6 . . . . . . . Prevented . | . . . . . . . . . . Kills | -11 -10 -10 -9 -6 -5 -5 -5 -5 -4 ------- Run | Yrd Mat Sub Scr Fac Fac Was Fac DSF Fac Combat Hostiles Destroyed 17 | . 5 1 8 3 . . . . . Guns 11 | . 5 1 5 . . . . . . AOE 6 | . . . 3 3 . . . . . Classes Destroyed 14 | 2 3 1 4 4 . . . . . Worker 3 | . . . . 3 . . . . . Builder 2 | . . . . 2 . . . . . Tunneler 3 | 3 . . . . . . . . . Recycler 2 | 1 . . . 1 . . . . . Watcher 1 | . 1 . . . . . . . . Swarmer 3 | . 3 . . . . . . . . Grunt 2 | . 2 . . . . . . . . Sentry 1 | . . . . 1 . . . . . Hunter 2 | . . . . 2 . . . . . Subdweller 1 | . . 1 . . . . . . . Federalist 1 | . . . 1 . . . . . . Ranger 1 | . . . 1 . . . . . . Guru 2 | . . . 2 . . . . . . Scrapper 4 | . . . 4 . . . . . . Best Kill Streak 8 | 2 4 1 2 8 . . . . . Combat Bots Only 4 | . 4 1 2 3 . . . . . Max Kills in Single Turn 8 | 1 1 1 2 8 . . . . . Gunslinging . | . . . . . . . . . . Exploded 3 | . . . 1 3 . . . . . Melee . | . . . . . . . . . . Uniques/NPCs Destroyed . | . . . . . . . . . . Combat | -11 -10 -10 -9 -6 -5 -5 -5 -5 -4 -------- Run | Yrd Mat Sub Scr Fac Fac Was Fac DSF Fac Hostile Shots Fired 207 | . 20 5 58 75 . 3 . 1 45 Missed 55 | . 1 2 15 16 . 1 . . 20 Hits 152 | . 19 3 43 59 . 2 . 1 25 Melee 2 | . . . . . . 2 . . . Projectile 150 | . 19 3 43 59 . . . 1 25 Critical Strikes 10 | . 1 . 4 2 . 1 . . 2 Damage Taken 3587 | . 172 64 709 1280 . 101 . 74 1187 Core 1602 | . 26 . 112 129 . 101 . 74 1160 Absorbed by Shields . | . . . . . . . . . . Regen/Repaired (Parts) 38 | . 38 . . . . . . . . Core Remaining (%) 77 | 100 . . 44 84 . . . 82 . Volleys Fired 49 | 8 13 4 21 3 . . . . . Largest 3 | 2 2 2 2 3 . . . . . Hottest 101 | 40 40 43 53 101 . . . . . Shots Fired 98 | 16 26 8 39 9 . . . . . Gun 94 | 16 26 8 36 8 . . . . . Cannon . | . . . . . . . . . . Launcher 4 | . . . 3 1 . . . . . Special . | . . . . . . . . . . Kinetic 94 | 16 26 8 36 8 . . . . . Thermal . | . . . . . . . . . . Explosive 4 | . . . 3 1 . . . . . Electromagnetic . | . . . . . . . . . . Robot Hit Streak 13 | 13 3 5 4 7 . . . . . Robot Miss Streak 5 | 1 5 1 4 4 . . . . . Penetration Max . | . . . . . . . . . . Secondary Targets . | . . . . . . . . . . Shots Hit Robots 62 | 14 13 6 20 9 . . . . . Core Hits 68 | 5 8 3 19 33 . . . . . Critical Kills 2 | 1 1 . . . . . . . . Critical Parts Destroyed 1 | . . . 1 . . . . . . Critical Strikes 3 | 1 1 . 1 . . . . . . Destroy 3 | 1 1 . 1 . . . . . . Melee Attacks 39 | . . . . 35 4 . . . . Impact . | . . . . . . . . . . Slashing . | . . . . . . . . . . Piercing 39 | . . . . 35 4 . . . . Sneak Attacks 1 | . . . . 1 . . . . . Combat Hostiles . | . . . . . . . . . . Follow-up Attacks . | . . . . . . . . . . Damage Inflicted 1904 | 191 180 82 502 949 . . . . . Guns 838 | 191 180 82 310 75 . . . . . Cannons . | . . . . . . . . . . Explosions 948 | . . . 188 760 . . . . . Melee 114 | . . . . 114 . . . . . Ramming 4 | . . . 4 . . . . . . Kinetic 838 | 191 180 82 310 75 . . . . . Thermal . | . . . . . . . . . . Explosive 948 | . . . 188 760 . . . . . Electromagnetic . | . . . . . . . . . . Impact . | . . . . . . . . . . Slashing . | . . . . . . . . . . Piercing 114 | . . . . 114 . . . . . Highest Corruption 1 | . . . 1 1 . . . . . Average Corruption 1 | . . . 1 1 . . . . . Corruption Purged . | . . . . . . . . . . Corruption Blocked . | . . . . . . . . . . Effects 4 | . . . 3 1 . . . . . Matter Fused 1 | . . . 1 . . . . . . Data Loss (major) 1 | . . . 1 . . . . . . Misfires 1 | . . . . 1 . . . . . Weapon Failures 1 | . . . 1 . . . . . . Overload Shots . | . . . . . . . . . . Overflow Damage 30 | . . . . 30 . . . . . Projectiles . | . . . . . . . . . . Explosions 30 | . . . . 30 . . . . . Melee . | . . . . . . . . . . Knockbacks . | . . . . . . . . . . Impact . | . . . . . . . . . . Kinetic . | . . . . . . . . . . Secondary . | . . . . . . . . . . Self-Inflicted Damage 148 | . . . 2 146 . . . . . Shots 5 | . . . . 5 . . . . . Rammed 1 | . . . 1 . . . . . . Targets Rammed 1 | . . . 1 . . . . . . Kicked . | . . . . . . . . . . Crushed . | . . . . . . . . . . Highest Temperature 53 | . . . 49 17 . . . . 53 Average Temperature 9 | . . . 7 14 . . . . 31 Received Heat Transfer 434 | . 42 18 302 36 . . . . 36 Siege Activations . | . . . . . . . . . . Martial Activations . | . . . . . . . . . . Shielding Activations . | . . . . . . . . . . Robots Disrupted . | . . . . . . . . . . Combat Hostiles . | . . . . . . . . . . Robots Corrupted . | . . . . . . . . . . Combat Hostiles . | . . . . . . . . . . Parts Fried . | . . . . . . . . . . Impact Corruptions . | . . . . . . . . . . Robots Melted . | . . . . . . . . . . Combat Hostiles . | . . . . . . . . . . Parts Melted 4 | . . . 4 . . . . . . Heat Transferred . | . . . . . . . . . . Parts Sabotaged . | . . . . . . . . . . Parts Stolen . | . . . . . . . . . . Parts Stripped . | . . . . . . . . . . Power Chain Reactions . | . . . . . . . . . . Alert | -11 -10 -10 -9 -6 -5 -5 -5 -5 -4 ------- Run | Yrd Mat Sub Scr Fac Fac Was Fac DSF Fac Maximum Alert Level . | . . . . . . . . . . Low Security (%) 100 | 100 100 . . 100 100 100 100 100 100 Level 1 . | . . . . . . . . . . Level 2 . | . . . . . . . . . . Level 3 . | . . . . . . . . . . Level 4 . | . . . . . . . . . . Level 5 . | . . . . . . . . . . High Security . | . . . . . . . . . . Max Security . | . . . . . . . . . . Peak Influence 96 | 10 80 . . 96 4 . . 18 45 Initial 9 | . . . . . 4 . . 3 9 Average 12 | 1 19 . . 18 1 . . 10 3 Influence Increases 384 | 20 137 . . 151 6 . 5 15 50 Destroy 0b10 Robot/C 160 | . 100 . . 60 . . . . . Destroy 0b10 Robot/NC 55 | 20 5 . . 30 . . . . . Destroy Leader 52 | . 32 . . 20 . . . . . Successful Hack 10 | . . . . . . . 5 . 5 Destroy Structure 47 | . . . . 41 6 . . . . Lose Combat Pursuer 60 | . . . . . . . . 15 45 Influence Decreases 339 | 20 101 36 . 142 15 . . 2 23 Entered New Map 34 | . . 18 . . 5 . . 2 9 Time Decay 267 | 20 101 18 . 104 10 . . . 14 Lost Part 38 | . . . . 38 . . . . . Squads Dispatched 6 | . 2 . . 3 . . . . 1 Investigation . | . . . . . . . . . . Extermination 1 | . . . . 1 . . . . . Reinforcement 5 | . 2 . . 2 . . . . 1 Assault . | . . . . . . . . . . Garrison . | . . . . . . . . . . Intercept . | . . . . . . . . . . Searches Triggered . | . . . . . . . . . . Construction Impeded 1 | . . . . 1 . . . . . Haulers Reinforced . | . . . . . . . . . . Active Scanning Responses . | . . . . . . . . . . Cargo Convoy Interrupts . | . . . . . . . . . . Stealth | -11 -10 -10 -9 -6 -5 -5 -5 -5 -4 --------- Run | Yrd Mat Sub Scr Fac Fac Was Fac DSF Fac Distress Signals 3 | . . . . 1 . . . . 2 Communications Jammed . | . . . . . . . . . . Distress Signals . | . . . . . . . . . . Times Spotted 61 | . 8 1 29 5 . 6 . 1 11 Peak Tracking Total 11 | . 3 1 5 5 . 6 . 1 11 Tactical Retreats 2 | . . . . . . . . 1 1 Traps | -11 -10 -10 -9 -6 -5 -5 -5 -5 -4 ------- Run | Yrd Mat Sub Scr Fac Fac Was Fac DSF Fac Traps Triggered 3 | . . . . . 1 . . 1 1 Indirectly . | . . . . . . . . . . Trap Hack Attempts . | . . . . . . . . . . Triggered . | . . . . . . . . . . Disarmed . | . . . . . . . . . . Reprogrammed . | . . . . . . . . . . Reused . | . . . . . . . . . . Traps Extracted . | . . . . . . . . . . Installed . | . . . . . . . . . . Triggered . | . . . . . . . . . . Machines | -11 -10 -10 -9 -6 -5 -5 -5 -5 -4 ---------- Run | Yrd Mat Sub Scr Fac Fac Was Fac DSF Fac Machines Disabled 1 | . . . 1 . . . . . . Max in Single Turn 1 | . . . 1 . . . . . . Machines Repaired . | . . . . . . . . . . Machines Dismantled . | . . . . . . . . . . Machines Sabotaged . | . . . . . . . . . . Overloaded Fab Kills . | . . . . . . . . . . Hacking | -11 -10 -10 -9 -6 -5 -5 -5 -5 -4 --------- Run | Yrd Mat Sub Scr Fac Fac Was Fac DSF Fac Machines Accessed 14 | . 2 . 9 1 . . 1 . 1 Terminals 3 | . . . . 1 . . 1 . 1 Fabricators . | . . . . . . . . . . Repair Stations 1 | . 1 . . . . . . . . Recycling Units 1 | . 1 . . . . . . . . Scanalyzers . | . . . . . . . . . . Garrison Access . | . . . . . . . . . . Total Hacks 67 | . 5 . 57 1 . . 1 . 3 Successful 62 | . 3 . 57 . . . 1 . 1 Failed 5 | . 2 . . 1 . . . . 2 Catastrophic . | . . . . . . . . . . Database Lockouts . | . . . . . . . . . . Manual 1 | . . . 1 . . . . . . Terminals 5 | . . . . 1 . . 1 . 3 Fabricators . | . . . . . . . . . . Repair Stations 3 | . 3 . . . . . . . . Recycling Units 2 | . 2 . . . . . . . . Scanalyzers . | . . . . . . . . . . Garrison Access . | . . . . . . . . . . Terminal Hacks 59 | . . . 57 . . . 1 . 1 Record 52 | . . . 52 . . . . . . Robot Analysis 5 | . . . 5 . . . . . . Open DSF 1 | . . . . . . . 1 . . Zone Layout 1 | . . . . . . . . . 1 Fabricator Hacks . | . . . . . . . . . . Repair Station Hacks 3 | . 3 . . . . . . . . Scan Component 2 | . 2 . . . . . . . . Repair 1 | . 1 . . . . . . . . Recycling Unit Hacks . | . . . . . . . . . . Scanalyzer . | . . . . . . . . . . Garrison Access Hacks . | . . . . . . . . . . Unauthorized Hacks . | . . . . . . . . . . Terminals . | . . . . . . . . . . Fabricators . | . . . . . . . . . . Repair Stations . | . . . . . . . . . . Recycling Units . | . . . . . . . . . . Scanalyzers . | . . . . . . . . . . Garrison Access . | . . . . . . . . . . Data Cores Recovered . | . . . . . . . . . . Used . | . . . . . . . . . . Hacking Detections 3 | . 1 . . 1 . . . . 1 Full Trace Events . | . . . . . . . . . . Feedback Events . | . . . . . . . . . . Feedback Blocked . | . . . . . . . . . . Robot Schematics Acquired . | . . . . . . . . . . Robots Built . | . . . . . . . . . . Authchips . | . . . . . . . . . . Time . | . . . . . . . . . . Total Robot Build Rating . | . . . . . . . . . . Part Schematics Acquired . | . . . . . . . . . . Parts Built . | . . . . . . . . . . Authchips . | . . . . . . . . . . Time . | . . . . . . . . . . Total Part Build Rating . | . . . . . . . . . . Parts Repaired 1 | . 1 . . . . . . . . Time 26 | . 26 . . . . . . . . Parts Recycled . | . . . . . . . . . . Recycled Matter . | . . . . . . . . . . Retrieved Matter . | . . . . . . . . . . Retrieved Components . | . . . . . . . . . . Parts Scanalyzed . | . . . . . . . . . . Part Schematics Acquired . | . . . . . . . . . . Parts Damaged . | . . . . . . . . . . Bothacking | -11 -10 -10 -9 -6 -5 -5 -5 -5 -4 ------------ Run | Yrd Mat Sub Scr Fac Fac Was Fac DSF Fac Used RIF Installer . | . . . . . . . . . . Robots Hacked . | . . . . . . . . . . Non-combat . | . . . . . . . . . . Combat . | . . . . . . . . . . Robot Hacks Applied . | . . . . . . . . . . Relay Couplers Released . | . . . . . . . . . . Fabnet Peak Effective % . | . . . . . . . . . . Robots Rewired . | . . . . . . . . . . Allies Hacked . | . . . . . . . . . . Hacks Repelled . | . . . . . . . . . . Allies | -11 -10 -10 -9 -6 -5 -5 -5 -5 -4 -------- Run | Yrd Mat Sub Scr Fac Fac Was Fac DSF Fac Total Allies . | . . . . . . . . . . Largest Group . | . . . . . . . . . . Highest-Rated Group . | . . . . . . . . . . Highest-Rated Ally . | . . . . . . . . . . Total Orders . | . . . . . . . . . . Ally Attacks . | . . . . . . . . . . Total Damage . | . . . . . . . . . . Kills . | . . . . . . . . . . Allies Corrupted . | . . . . . . . . . . Allies Melted 1 | . . . 1 . . . . . . Intel | -11 -10 -10 -9 -6 -5 -5 -5 -5 -4 ------- Run | Yrd Mat Sub Scr Fac Fac Was Fac DSF Fac Active Infowar (turns) 3623 | 35 451 291 1906 614 97 29 101 51 48 Sensors 940 | . . . . 614 97 29 101 51 48 Terrain 1298 | 16 53 . 1229 . . . . . . Seismic 1772 | 19 398 291 677 387 . . . . . Robot Analysis Total 5 | . . . 5 . . . . . . Derelict Logs Recovered 1 | . . . 1 . . . . . . Drone Launches . | . . . . . . . . . . Drone Recoveries . | . . . . . . . . . . Exploration | -11 -10 -10 -9 -6 -5 -5 -5 -5 -4 ------------- Run | Yrd Mat Sub Scr Fac Fac Was Fac DSF Fac Turns Passed 4128 | 231 451 291 2107 621 97 68 101 51 110 Spaces Moved 2813 | 119 208 174 1274 433 63 84 197 62 199 Core 481 | 5 . . . . . 61 197 62 156 Treads 1683 | 112 190 174 1207 . . . . . . Legs 2 | 2 . . . . . . . . . Wheels 594 | . 18 . 67 433 63 13 . . . Hover 43 | . . . . . . . . . 43 Flight 10 | . . . . . . 10 . . . Fastest Speed 50 | 50 95 160 115 105 130 50 50 50 50 Average Speed 130 | 155 154 160 157 116 139 68 50 50 52 Slowest Speed 160 | 160 160 160 160 130 145 145 50 50 60 Overloaded Moves . | . . . . . . . . . . Propulsion Burnouts . | . . . . . . . . . . Robots Hopped . | . . . . . . . . . . Potential Cave-ins . | . . . . . . . . . . Cave-ins Triggered 1 | . . . . 1 . . . . . Exploration Rate (%) 29 | 8 32 13 78 15 2 67 5 69 8 Regions Visited 9 Branch Regions 2 Pre-discovered Areas . | . . . . . . . . . . Known Exits Taken 2 | . . . 1 . . . 1 . . Unknown Exits Taken 4 | 1 1 1 . 1 . . . . . Scrap Searched . | . . . . . . . . . . Spaces Dug 23 | . . . . 20 3 . . . . Terrain Destroyed 52 | . . . 8 41 3 . . . . Melee 23 | . . . . 20 3 . . . . Projectile . | . . . . . . . . . . AOE 29 | . . . 8 21 . . . . . Terrain Rammed . | . . . . . . . . . . Walls Destroyed . | . . . . . . . . . . Machines Disabled . | . . . . . . . . . . Actions | -11 -10 -10 -9 -6 -5 -5 -5 -5 -4 --------- Run | Yrd Mat Sub Scr Fac Fac Was Fac DSF Fac Total 3138 | 147 309 179 1344 507 69 98 198 81 206 Wait 77 | . 67 . 4 1 . . . 5 . Move 2806 | 118 207 173 1274 432 63 83 196 61 199 Hop . | . . . . . . . . . . Pick Up 47 | 9 6 1 13 13 1 . 1 . 3 Fast Attach 13 | 7 1 . 2 1 1 1 . . . Attach 20 | 1 1 . 5 11 . . 1 . 1 Detach 6 | 1 . . 1 . . 4 . . . Swap 27 | 1 10 . 9 5 . 2 . . . Drop 39 | 2 4 1 15 6 . 8 . . 3 Fire 49 | 8 13 4 21 3 . . . . . Melee 39 | . . . . 35 4 . . . . Ram . | . . . . . . . . . . Kick . | . . . . . . . . . . Crush . | . . . . . . . . . . Escape Stasis 15 | . . . . . . . . 15 . Rewire . | . . . . . . . . . . Trap . | . . . . . . . . . . Miscellaneous . | . . . . . . . . . . Route ------- -11/Scrapyard -10/Materials (discovered 2 exits: [*Min] / [*Sub]) -10/Subcaves -9/Scraptown (discovered 2 exits: *Fac x2) -6/Factory -5/Factory -5/Waste -5/Factory -5/DSF -4/Factory History --------- Turn | Location | Event 11 | -11/Scrapyard | Discovered new exit (range 16) 232 | -11/Scrapyard | Entered Materials 306 | -10/Materials | Build established: Mutant 490 | -10/Materials | Discovered new exit (range 16) 655 | -10/Materials | Repaired Lgt. Treads 679 | -10/Materials | Discovered new exit (range 4) 683 | -10/Materials | Entered Subcaves 684 | -10/Subcaves | Approached by a straggling Scientist 965 | -10/Subcaves | Scientist uncovered a shortcut to Scraptown 974 | -10/Subcaves | Entered Scraptown 1101 | -9/Scraptown | Visited Bundlers 1177 | -9/Scraptown | Visited Spacefarers 1806 | -9/Scraptown | Heard Great Nut preacher, LISTEN AND RECITE! 1923 | -9/Scraptown | Discovered new exit (range 5) 1969 | -9/Scraptown | Scanned Subdweller tech in exchange for log data 1976 | -9/Scraptown | Learned Research non-interactive machine intel 2027 | -9/Scraptown | Visited TADAMA 2049 | -9/Scraptown | Visited Cave Peace 2117 | -9/Scraptown | Visited UFD Registry 2117 | -9/Scraptown | Registered with UFD as "Armorkit" 2174 | -9/Scraptown | Visited Modified Component R&D 2269 | -9/Scraptown | Visited Abandonware Association 2294 | -9/Scraptown | Learned abandonware demo "ERRANTS.EXE" 2337 | -9/Scraptown | Visited Scrap Suit Storage 2385 | -9/Scraptown | Visited A0-MCA Data Center 2397 | -9/Scraptown | Given an A rating by A0-MCA 2412 | -9/Scraptown | Found A0-MCA's Component Scanner 2439 | -9/Scraptown | Visited Derelict Rescue Squad 2454 | -9/Scraptown | Found DRS Beacon 2495 | -9/Scraptown | Visited Analyses Database 2556 | -9/Scraptown | Visited Supply Room 2651 | -9/Scraptown | Met Optimus 2651 | -9/Scraptown | Accepted into 0bPrime 2754 | -9/Scraptown | Civil war broke out across Scraptown 2855 | -9/Scraptown | Lost 12 allies 2976 | -9/Scraptown | Identified exit to Factory 3020 | -9/Scraptown | Optimus destroyed in the chaos of civil war 3060 | -9/Scraptown | Core integrity fell below 50% 3081 | -9/Scraptown | Entered Factory 3081 | -6/Factory | Evolved 8 slots: Propulsion x2, Utility x4, Weapon x2 3103 | -6/Factory | Lost 9 allies 3352 | -6/Factory | Build established: Scavenger-Tank 3431 | -6/Factory | Found Scatter Rocket Array 3434 | -6/Factory | Found Scatter Rocket Array 3464 | -6/Factory | Crushed by falling debris 3525 | -6/Factory | Lost 5 parts (1n3u1w) 3697 | -6/Factory | Discovered new exit (range 4) 3702 | -6/Factory | Entered another Factory area 3702 | -5/Factory | Evolved 2 slots: Power x1, Propulsion x1 3799 | -5/Factory | Sucked down chute 3799 | -5/Factory | Entered Waste 3809 | -5/Waste | Spotted C-40 Crusher 3823 | -5/Waste | Spotted C-40 Crusher 3833 | -5/Waste | Crushed by Compactor (1 part destroyed, 2 dropped) 3836 | -5/Waste | Crushed by Compactor (1 part destroyed, 2 dropped) 3841 | -5/Waste | Spotted C-40 Crusher 3850 | -5/Waste | Spotted C-40 Crusher 3854 | -5/Waste | Spotted C-40 Crusher 3854 | -5/Waste | Spotted C-40 Crusher 3860 | -5/Waste | Discovered new exit (range 14) 3867 | -5/Waste | Entered Factory 3968 | -5/Factory | Identified exit to DSF 3968 | -5/Factory | Entered DSF 3989 | -5/DSF | Additional patrols routed to DSF 3992 | -5/DSF | Discovered new exit (range 15) 4019 | -5/DSF | Entered Factory 4019 | -4/Factory | Evolved 2 slots: Utility x2 4083 | -4/Factory | Core integrity fell below 50% 4083 | -4/Factory | Core integrity fell below 20% 4099 | -4/Factory | Spotted B-86 Titan 4123 | -4/Factory | Build established: Mutant 4129 | -4/Factory | Destroyed by P-70 Sage with Tesla Rifle Last Messages --------------- 04082_ Fusion Modulator explodes. 04082_ U-05 Engineer destroyed. 04082_ Fusion Modulator explodes. 04082_ H-77 Assassin destroyed. 04082_ Fusion Modulator explodes. 04082_ O-16 Technician destroyed. 04082_ Fusion Modulator explodes. 04082_ Nuclear Reactor explodes. 04082_ G-73 Enforcer destroyed. 04082_ G-67 Veteran destroyed. 04082_ K-01 Serf destroyed. 04082_ Fusion Modulator explodes. 04090_ U-05 Engineer lays Concrete. 04108_ K-01 Serf cleans the Assembly Bed. 04112_ Assembly Bed disabled. 04117_ Connecting with Terminal... 04117_ Current location identified: Factory >>Layout(Zone) Retrieving Zone 4R layout... Downloaded map data. Map ----- +----------------------------------------------------+ | | | | | | | | | | | | | | | | | | | | | | | | | ?????????????????????????????????????????????????? | | ?????????????????????????????????????????????????? | | ?????????????????????????????????????????????????? | | ?????????????????????????????????????????????????? | | # #?????????????????????????????????????????? | | # """ ##############????????????????????????????? | | # """ # #?????###????????????????????? | | # """ # #?????# ????????????????????? | | # "" # #?????# #????????????????????? | | # "" # #?????# #????????????????????? | | + # #?????# #????????????????????? | | # ""# #?????# #????????????????????? | | # ""# #??##############???????????## | | # Y"# #??# @ #???????????# | | # ""# #??# #???????????# | | # ""# #??# """ """ = #???????????# | | # # #??# """ """ #??????????## | | ######## #??# """ """ #??????????# | | #??????#######+######### #??????????## | | #??????#### T #= """ """ #?? ????#" | | ##?????#""" # """ """ ????# ???## | | #?????#"F" """""" #p """ """ ???# ????# | | #?????#" """""" + #?# ????# | | #?????#""" """""" # #?# ????# | | #?????#""" """""" # ### ????# | | #?????#### ############"""" ###### | | #????????# """""" #?????? | | #????????# """"" #?????? | | #????????# """""" ###?????? = | | ########## """""" "#####??# * | | # # #""G""??# | | # """# """""" # " " ??# [ | | # R"# """""" # " " ### | | # """# """""" | | # # """""" | | ??????????# """" = | | ??????????# """""" """" %!% | | ??????????# """""" """" | +----------------------------------------------------+ Best States ------------- Heat Dissipation 43 Energy Generation 25 Energy Capacity 290 Matter Stores 300 Matter Capacity 300 Sight Range 16 Robot Scan Range 16 Terrain Scan Range 16 Terrain Scan Density 10 Armor Coverage 225 Evasion (%) 57 Recoil Reduction 3 Item Schematics ----------------- None Robot Schematics ------------------ None Fabricated ------------ Nothing Repaired ---------- Lgt. Treads | 72% | -10/Materials Alien Tech Used ----------------- None Achievements -------------- Armchair Analyst Librarian Challenges ------------ None Game ------ Seed LinearPhasingInterrupter Manual? 0 Play Time 01:14:36 Cumulative 13.5 hours Start 2025.08.17 @ 15:14:30 End 2025.08.17 @ 16:28:12 Sessions 1 Manual Loads 0 Difficulty Rogue Special Mode None Game No. 15 Rogue 15 Adventurer 0 Explorer 0 Win Type - Total 0 Types 0/0/0/0/0/0/0/0/0/0 Lore% 11 Gallery% 16 Achievement% 18 Wizard Run 0 Options --------- Layout 1 ASCII 0 Keyboard 1 Movement Arrows Keybinds 0 Fullscreen 2 Font 24/Smallcaps Map View 50x35 Zoom Use 3% Tactical HUD 1 Map Filters NONE Filters NONE Steam 1 RUN: da03b823-1e60-4e98-8960-db4d7d6de379